fUSD/lending_fUSD_20251120
["ID","MTS","AMOUNT","RATE_DAILY","PERIOD"]
[394478651,1763617916208,-151.0,0.00038,31]
[394478652,1763617916246,-235.441196,0.00038,31]
[394478653,1763617916285,-235.441196,0.00038,31]
[394478654,1763617916321,-182.93783,0.00038,31]
[394478655,1763617916356,-151.0,0.00038,31]
[394478656,1763617916395,-182.93783,0.00038,31]
[394478657,1763617916433,-182.93783,0.00038,31]
[394478658,1763617916471,-182.93783,0.00038,31]
[394478659,1763617916509,-152.884694,0.00038,31]
[394478660,1763617916556,-151.0,0.000395,120]
[394478661,1763617916593,-235.441196,0.000395,120]
[394478662,1763617916628,-170.673861,0.000395,60]
[394478663,1763617916666,-235.441196,0.000395,120]
[394478664,1763617916705,-235.441196,0.000395,120]
[394478665,1763617916743,-182.93783,0.000395,120]
[394478666,1763617916781,-159.661765,0.000395,120]
[394478667,1763617916819,-182.93783,0.000395,120]
[394478668,1763617916857,-182.93783,0.000395,120]
[394478669,1763617916898,-182.93783,0.000395,120]
[394478670,1763617916941,-151.0,0.00041,120]
[394478671,1763617916976,-235.441196,0.00041,120]
[394478672,1763617917013,-235.441196,0.00041,120]
[394478673,1763617917052,-235.441194,0.00041,120]
[394478674,1763617917092,-182.93783,0.00041,120]
[394478675,1763617917135,-182.93783,0.00041,120]
[394478676,1763617917175,-182.93783,0.00041,120]
[394478677,1763617917213,-182.937826,0.00041,120]
[394478678,1763617917280,-150.0,0.00042162,30]
[394478679,1763617917488,-160.0,0.0005,120]
[394478680,1763617917534,-500.0,0.00060273,120]
[394478681,1763617917571,-500.0,0.00060273,120]
[394478682,1763617917607,-500.0,0.00060273,120]
[394478683,1763617917642,-500.0,0.00060273,120]
[394478684,1763617917677,-500.0,0.00060273,120]
[394478685,1763617917713,-500.0,0.00060273,120]
[394478686,1763617917748,-500.0,0.00060273,120]
[394478687,1763617917784,-500.0,0.00060273,120]
[394478688,1763617917818,-500.0,0.00060273,120]
[394478689,1763617917856,-500.0,0.00060273,120]
[394478690,1763617917895,-312.00671795,0.00060273,120]
[394478691,1763617917936,-152.0,0.000605,120]
[394478692,1763617917972,-368.0,0.000608,120]
[394478693,1763617918010,-153.0,0.000608,120]
[394478694,1763617918046,-1000.0,0.00060999,120]
[394478695,1763617918080,-339.4476141,0.00061,120]
[394478696,1763617918120,-2733.0,0.00061,120]
[394478697,1763617918156,-152.0,0.00061,120]
[394478698,1763617918196,-1444.0,0.00061151,120]
[394478699,1763617918237,-4274.76,0.0006137,120]
[394478700,1763617918279,-153.0,0.000614,120]
[394478701,1763617918317,-152.0,0.000615,120]
[394478702,1763617918352,-4065.02312475,0.00061532,120]
[394478703,1763617918386,-2000.0,0.00061635,120]
[394478704,1763617918420,-500.0,0.00061665,120]
[394478705,1763617918454,-2031.52594071,0.000618,120]
[394478706,1763617918489,-1000.0,0.00061999,120]
[394478707,1763617918522,-2000.0,0.00062,120]
[394478708,1763617918555,-150.0,0.00062,120]
[394478709,1763617918590,-1000.0,0.00062,120]
[394478710,1763617918627,-152.0,0.00062,120]
[394478711,1763617918665,-153.0,0.00062,120]
[394478712,1763617918705,-200.0,0.00062,120]
[394478713,1763617918745,-2000.0,0.000622,90]
[394478714,1763617918786,-200.0,0.0006224,38]
[394478715,1763617918826,-200.0,0.00062394,39]
[394478716,1763617918865,-200.0,0.00062395,39]
[394478717,1763617918906,-200.0,0.00062396,39]
[394478718,1763617918952,-152.0,0.000624,120]
[394478719,1763617919005,-200.0,0.00062405,39]
[394478720,1763617919067,-2460.0,0.0006243,69]
[394478721,1763617919115,-153.0,0.000626,120]
[394478722,1763617919166,-150.0,0.00062769,120]
[394478723,1763617919213,-150.0,0.00062848,120]
[394478724,1763617919260,-152.0,0.000629,120]
[394478725,1763617919308,-150.0,0.00062982,120]
[394478726,1763617919350,-1000.0,0.00062999,120]
[394478727,1763617919397,-2733.0,0.00063,120]
[394478728,1763617919442,-1871.0,0.000631,120]
[394478729,1763617919485,-153.0,0.000632,120]
[394478730,1763617919530,-244.42656903,0.0006321,120]
[394478731,1763617919573,-5080.08192,0.0006336,30]
[394478732,1763617919616,-152.0,0.000634,120]
[394478733,1763617919660,-150.0,0.00063712,120]
[394478734,1763617919705,-153.0,0.000638,120]
[394478735,1763617919749,-3074.524,0.0006382,120]
[394478736,1763617919795,-217.296,0.0006382,120]
[394478737,1763617919838,-152.0,0.000639,120]
[394478738,1763617919883,-1000.0,0.00063999,120]
[394478739,1763617919933,-2000.0,0.00064,120]
[394478740,1763617919983,-150.0,0.00064,120]
[394478741,1763617920032,-200.0,0.00064,120]
[394478742,1763617920079,-150.0,0.00064033,120]
[394478743,1763617920125,-508.1774109,0.0006411,30]
[394478744,1763617920171,-150.0,0.00064262,120]
[394478745,1763617920215,-2000.0,0.0006428,65]
[394478746,1763617920261,-152.0,0.000644,120]
[394478747,1763617920308,-153.0,0.000644,120]
[394478748,1763617920353,-732.594643,0.000645,120]
[394478749,1763617920398,-150.0,0.00064853,120]
[394478750,1763617920442,-152.0,0.000649,120]
[394478751,1763617920487,-1000.0,0.00064999,120]
[394478752,1763617920535,-50000.0,0.00065,65]
[394478753,1763617920578,-303.54132848,0.00065,120]
[394478754,1763617920622,-3150.6,0.00065,30]
[394478755,1763617920665,-370.0,0.00065,120]
[394478756,1763617920709,-153.0,0.00065,120]
[394478757,1763617920751,-1174.88968089,0.00065,120]
[394478758,1763617920797,-925.2,0.00065033,120]
[394478759,1763617920842,-24000.0,0.0006532,30]
[394478760,1763617920885,-153.0,0.0006538,120]
[394478761,1763617920931,-152.0,0.000654,120]
[394478762,1763617920975,-2564.0,0.000656,120]
[394478763,1763617921019,-2564.0,0.000656,120]
[394478764,1763617921072,-2564.0,0.000656,120]
[394478765,1763617921126,-2564.0,0.000656,120]
[394478766,1763617921180,-2564.0,0.000656,120]
[394478767,1763617921227,-2564.0,0.000656,120]
[394478768,1763617921274,-2564.0,0.000656,120]
[394478769,1763617921321,-2564.0,0.000656,120]
[394478770,1763617921367,-2564.0,0.000656,120]
[394478771,1763617921419,-2564.0,0.000656,120]
[394478772,1763617921474,-153.0,0.000656,120]
[394478773,1763617921531,-152.0,0.000658,120]
[394478774,1763617921580,-893.42,0.0006587,120]
[394478775,1763617921630,-1000.0,0.00065875,120]
[394478776,1763617921679,-1084.994,0.00065875,120]
[394478777,1763617921729,-1000.0,0.00065875,120]
[394478778,1763617921898,-1000.0,0.00065875,120]
[394478779,1763617921952,-1000.0,0.00065875,120]
[394478780,1763617922000,-1060.09,0.00065875,120]
[394478781,1763617922055,-1000.0,0.00065875,120]
[394478782,1763617922111,-1000.0,0.00065875,120]
[394478783,1763617922169,-1000.0,0.00065881,120]
[394478784,1763617922227,-1000.0,0.00065881,120]
[394478785,1763617922275,-1000.0,0.00065881,120]
[394478786,1763617922322,-1000.0,0.00065881,120]
[394478787,1763617922371,-1000.0,0.00065881,120]
[394478788,1763617922418,-1000.0,0.00065881,120]
[394478789,1763617922474,-1000.0,0.00065881,120]
[394478790,1763617922530,-1000.0,0.00065883,120]
[394478791,1763617922585,-1000.0,0.00065888,120]
[394478792,1763617922633,-1000.0,0.00065888,120]
[394478793,1763617922682,-1000.0,0.00065888,120]
[394478794,1763617922730,-1000.0,0.00065888,120]
[394478795,1763617922786,-1000.0,0.00065888,120]
[394478796,1763617922842,-1000.0,0.00065888,120]
[394478797,1763617922897,-1000.0,0.00065888,120]
[394478798,1763617922953,-1000.0,0.0006589,120]
[394478799,1763617923008,-1000.0,0.00065894,120]
[394478800,1763617923064,-1000.0,0.00065894,120]
[394478801,1763617923119,-1000.0,0.00065894,120]
[394478802,1763617923178,-1000.0,0.00065894,120]
[394478803,1763617923233,-1000.0,0.00065894,120]
[394478804,1763617923289,-1000.0,0.00065894,120]
[394478805,1763617923343,-1000.0,0.00065894,120]
[394478806,1763617923396,-1000.0,0.00065897,120]
[394478807,1763617923451,-1437.42144603,0.00065898,91]
[394478808,1763617923505,-2000.0,0.000659,120]
[394478809,1763617923559,-1000.0,0.00065901,120]
[394478810,1763617923614,-1000.0,0.00065901,120]
[394478811,1763617923668,-1000.0,0.00065901,120]
[394478812,1763617923725,-1000.0,0.00065901,120]
[394478813,1763617923784,-1000.0,0.00065901,120]
[394478814,1763617923842,-1000.0,0.00065901,120]
[394478815,1763617923900,-1000.0,0.00065901,120]
[394478816,1763617923955,-1000.0,0.00065905,120]
[394478817,1763617924002,-1000.0,0.00065908,120]
[394478818,1763617924055,-1000.0,0.00065908,120]
[394478819,1763617924109,-1000.0,0.00065908,120]
[394478820,1763617924163,-1000.0,0.00065908,120]
[394478821,1763617924218,-1000.0,0.00065908,120]
[394478822,1763617924273,-1000.0,0.00065908,120]
[394478823,1763617924329,-1000.0,0.00065908,120]
[394478824,1763617924375,-1000.0,0.00065912,120]
[394478825,1763617924420,-1000.0,0.00065914,120]
[394478826,1763617924467,-1000.0,0.00065914,120]
[394478827,1763617924514,-1000.0,0.00065914,120]
[394478828,1763617924558,-1000.0,0.00065914,120]
[394478829,1763617924601,-1000.0,0.00065914,120]
[394478830,1763617924645,-1000.0,0.00065914,120]
[394478831,1763617924688,-1000.0,0.00065914,120]
[394478832,1763617924732,-1000.0,0.00065919,120]
[394478833,1763617924777,-1000.0,0.00065921,120]
[394478834,1763617924824,-1000.0,0.00065921,120]
[394478835,1763617924867,-1000.0,0.00065921,120]
[394478836,1763617924911,-1000.0,0.00065921,120]
[394478837,1763617924954,-1000.0,0.00065921,120]
[394478838,1763617924997,-1000.0,0.00065921,120]
[394478839,1763617925039,-1000.0,0.00065921,120]
[394478840,1763617925081,-1000.0,0.00065927,120]
[394478841,1763617925124,-1000.0,0.00065927,120]
[394478842,1763617925167,-1000.0,0.00065927,120]
[394478843,1763617925216,-1000.0,0.00065927,120]
[394478844,1763617925262,-1000.0,0.00065927,120]
[394478845,1763617925303,-1000.0,0.00065927,120]
[394478846,1763617925342,-1000.0,0.00065927,120]
[394478847,1763617925382,-1000.0,0.00065927,120]
[394478848,1763617925421,-1000.0,0.00065934,120]
[394478849,1763617925462,-1000.0,0.00065934,120]
[394478850,1763617925502,-1000.0,0.00065934,120]
[394478851,1763617925543,-1000.0,0.00065934,120]
[394478852,1763617925583,-1000.0,0.00065934,120]
[394478853,1763617925622,-1000.0,0.00065934,120]
[394478854,1763617925660,-1000.0,0.00065934,120]
[394478855,1763617925699,-1000.0,0.00065934,120]
[394478856,1763617925738,-282.834,0.00065934,120]
[394478857,1763617925777,-200.0,0.0006597,90]
[394478858,1763617925817,-250.0,0.0006597,90]
[394478859,1763617925856,-1000.0,0.00065999,120]
[394478860,1763617925896,-1709.65355895,0.00066,30]
[394478861,1763617925936,-2000.0,0.00066,120]
[394478862,1763617925975,-150.0,0.00066,120]
[394478863,1763617926012,-230.0,0.00066,120]
[394478864,1763617926050,-402.20533943,0.00066,120]
[394478865,1763617926088,-153.0,0.000662,120]
[394478866,1763617926128,-152.0,0.000663,120]
[394478867,1763617926166,-229.01843327,0.000666,120]
[394478868,1763617926205,-152.0,0.000668,120]
[394478869,1763617926242,-153.0,0.000668,120]
[394478870,1763617926281,-1000.0,0.00066999,120]
[394478871,1763617926318,-1180.0,0.00067001,60]
[394478872,1763617926359,-152.0,0.000673,120]
[394478873,1763617926398,-153.0,0.000674,120]
[394478874,1763617926438,-2000.0,0.0006765,71]
[394478875,1763617926478,-1000.0,0.00067782,60]
[394478876,1763617926519,-152.0,0.000678,120]
[394478877,1763617926558,-1000.0,0.00067999,120]
[394478878,1763617926595,-2000.0,0.00068,120]
[394478879,1763617926769,-153.0,0.00068,120]
[394478880,1763617926810,-1738.87,0.00068,30]
[394478881,1763617926850,-152.0,0.000683,120]
[394478882,1763617926889,-2008051.39860932,0.000684,90]
[394478883,1763617926930,-1096.0,0.00068483,120]
[394478884,1763617926968,-1086.0,0.00068483,120]
[394478885,1763617927117,150.0,0.000421,60]
[394478886,1763617927188,464000.22418255,0.00068483,120]
[394478887,1763617927236,186.15,0.00045,60]
[394478888,1763617927317,214.17751452,0.00042029,120]
[394478889,1763617927439,182.99668141,0.00042029,120]
[394478890,1763617927572,191.13815724,0.00042029,120]
[394478891,1763617927723,217.98778747,0.00042029,120]
[394478892,1763617927943,393.07582623,0.00042029,120]
[394478893,1763617928606,240.53274809,0.00042029,120]
[394478894,1763617933902,171.05163071,0.00042029,120]
[394478895,1763617938457,458.19046111,0.00042029,120]
[394478896,1763617940377,375.9,0.00042029,120]
[394478897,1763617940747,426.45432478,0.00042029,120]
[394478898,1763617942512,413.62451884,0.00042029,120]
[394478899,1763617944786,500.0,0.00042029,120]
[394478900,1763617945114,206.55423369,0.00042029,120]
[394478901,1763617947106,385.0,0.00042029,120]
[394478902,1763617947195,408.76047911,0.00042029,120]
[394478903,1763617948102,165.11025079,0.00042029,120]
[394478904,1763617949090,400.0,0.00042029,120]
[394478905,1763617949247,463.72377861,0.00042029,120]
[394478906,1763617952226,220.29778944,0.00042029,120]
[394478907,1763617952816,157.8790204,0.00042029,120]
[394478908,1763617953253,177.4827535,0.00042029,120]
[394478909,1763617954683,491.3526666,0.00042029,120]
[394478910,1763617955762,614.64624545,0.00042029,120]
[394478911,1763617956184,419.00134974,0.00042029,120]
[394478912,1763617956505,500.0,0.00042029,30]
[394478913,1763617956733,154.53222241,0.00042029,30]
[394478914,1763617959814,156.55867223,0.00042029,120]
[394478915,1763617961520,162.67071595,0.00042029,120]
[394478916,1763617962654,300.0,0.00042029,120]
[394478917,1763617963325,514.84075654,0.00042029,120]
[394478918,1763617964606,190.69644892,0.00042029,120]
[394478919,1763617965005,493.87674413,0.00042029,120]
[394478920,1763617966838,184.4263453,0.00042029,120]
[394478921,1763617968201,400.0,0.00042029,120]
[394478922,1763617968828,549.20472489,0.00042029,120]
[394478928,1763617969918,510.51477152,0.00042029,120]
[394479110,1763617976987,467.85831496,0.00042029,120]
[394479111,1763617977327,440.43978766,0.00042029,120]
[394479112,1763617979175,400.0,0.00042029,120]
[394479113,1763617979890,233.58107982,0.00042029,120]
[394479114,1763617982529,387.96610017,0.00042029,120]
[394479115,1763617982575,400.0,0.00042029,120]
[394479116,1763617984585,500.0,0.00042029,120]
[394479117,1763617984840,346.59383616,0.00042029,120]
[394479118,1763617986189,169.3417488,0.00042029,120]
[394479119,1763617988024,389.98772518,0.00042029,120]
[394479120,1763617989347,433.99560408,0.00042029,120]
[394479121,1763617990126,200.1265084,0.00042029,120]
[394479122,1763617992130,267.88295658,0.00042029,120]
[394479138,1763617993404,453.47748672,0.00042029,120]
[394479156,1763617994185,400.0,0.00042029,120]
[394479198,1763617995720,254.35,0.00042029,120]
[394479284,1763617998674,400.0,0.00042029,120]
[394479289,1763617998826,411.6797814,0.00042029,120]
[394479309,1763618001096,300.0,0.00042029,120]
[394479310,1763618002732,234.55247185,0.00042029,120]
[394479335,1763618005464,280.0,0.00042029,120]
[394479424,1763618010392,248.16212772,0.00042029,120]
[394479425,1763618011876,1860.69675243,0.00042029,30]
[394479426,1763618012956,175.82422191,0.00042029,120]
[394479427,1763618016407,393.93947239,0.00042029,120]
[394479428,1763618018308,406.64384364,0.00042029,120]
[394479429,1763618021803,458.42592009,0.00042029,120]
[394479430,1763618022465,209.53311789,0.00042029,120]
[394479431,1763618023127,353.77197863,0.00042029,120]
[394479432,1763618023327,410.4276528,0.00042029,120]
[394479433,1763618024331,486.68991508,0.00042029,120]
[394479434,1763618025018,225.86986053,0.00042029,120]
[394479435,1763618025261,606.22973324,0.00042029,120]
[394479436,1763618026200,462.79515149,0.00042029,120]
[394479437,1763618026257,400.0,0.00042029,120]
[394479438,1763618027149,199.32711363,0.00042029,120]
[394479439,1763618027753,300.0,0.00042029,120]
[394479440,1763618029065,421.19405772,0.00042029,120]
[394479441,1763618029539,408.47389232,0.00042029,120]
[394479442,1763618031319,161.25791495,0.00042029,90]
[394479443,1763618031514,320.41532715,0.00042029,120]
[394479444,1763618031579,417.92834128,0.00042029,120]
[394479447,1763618032063,622.91,0.00042029,120]
[394479458,1763618032579,327.68572044,0.00042029,120]
[394479460,1763618032640,465.50669472,0.00042029,120]
[394479475,1763618033240,300.0,0.00042029,120]
[394479509,1763618034600,213.889349,0.00042029,120]
[394479533,1763618036608,480.232094,0.00042029,120]
[394479536,1763618040236,334.628579,0.00042029,120]
[394479537,1763618042065,500.0,0.00042029,120]
[394479538,1763618042300,319.39548149,0.00042029,120]
[394479539,1763618042739,452.25208304,0.00042029,120]
[394479540,1763618043032,327.8800304,0.00042029,120]
[394479541,1763618043419,334.21446017,0.00042029,120]
[394479542,1763618044401,412.99358179,0.00042029,120]
[394479543,1763618044995,421.32019197,0.00042029,120]
[394479544,1763618046332,192.85965704,0.00042029,120]
[394479545,1763618048187,343.52662191,0.00042029,120]
[394479546,1763618048289,320.80637096,0.00042029,120]
[394479547,1763618048395,279.78001246,0.00042029,120]
[394479548,1763618051704,248.4222356,0.00042029,120]
[394479549,1763618051747,159.58534678,0.00042029,120]
[394479550,1763618052453,295.62397258,0.00042029,120]
[394479551,1763618052970,354.338802,0.00042029,120]
[394479552,1763618053543,380.3820899,0.00042029,120]
[394479553,1763618054415,233.9786896,0.00042029,120]
[394479554,1763618054817,413.8828835,0.00042029,120]
[394479555,1763618057114,328.5354772,0.00042029,120]
[394479556,1763618059247,420.24160465,0.00042029,120]
[394479557,1763618059637,342.02248486,0.00042029,120]
[394479558,1763618060069,455.75337268,0.00042029,120]
[394479559,1763618061202,500.0,0.00042029,120]
[394479560,1763618062072,472.98535776,0.00042029,120]
[394479561,1763618062574,212.97061257,0.00042029,120]
[394479562,1763618062864,300.0,0.00042029,120]
[394479563,1763618065542,442.00622627,0.00042029,120]
[394479564,1763618066484,381.22950862,0.00042029,120]
[394479565,1763618067614,428.77632653,0.00042029,120]
[394479566,1763618068205,400.0,0.00042029,120]
[394479568,1763618069853,496.54972288,0.00042029,120]
[394479569,1763618069896,429.77167585,0.00042029,120]
[394479570,1763618071552,439.84805518,0.00042029,120]
[394479571,1763618071711,358.77539198,0.00042029,120]
[394479572,1763618073260,420.92388284,0.00042029,120]
[394479573,1763618073374,384.60607149,0.00042029,120]
[394479574,1763618074156,320.57650403,0.00042029,120]
[394479575,1763618075103,282.73426935,0.00042029,120]
[394479576,1763618075824,421.52473088,0.00042029,120]
[394479577,1763618076058,400.0,0.00042029,120]
[394479578,1763618077049,215.70782871,0.00042029,120]
[394479579,1763618078949,173.3804424,0.00042029,120]
[394479580,1763618079182,390.3472476,0.00042029,120]
[394479583,1763618082699,500.0,0.00042029,120]
[394479584,1763618082875,226.94076694,0.00042029,120]
[394479585,1763618083001,430.72345517,0.00042029,120]
[394479586,1763618084111,400.0,0.00042029,120]
[394479587,1763618084867,238.54991927,0.00042029,120]
[394479588,1763618085945,226.61058608,0.00042029,120]
[394479589,1763618086019,296.500824,0.00042029,120]
[394479590,1763618086612,405.18281055,0.00042029,120]
[394479591,1763618086721,250.78882568,0.00042029,120]
[394479592,1763618089493,194.51716087,0.00042029,120]
[394479593,1763618091880,356.51393466,0.00042029,120]
[394479594,1763618097075,172.80018795,0.00042029,120]
[394479595,1763618097118,500.0,0.00042029,120]
[394479596,1763618097348,270.53417814,0.00042029,120]
[394479597,1763618098610,374.01279826,0.0004203,120]
[394479598,1763618099204,641.97400888,0.0004203,120]
[394479599,1763618099511,405.50808672,0.0004203,120]
[394479600,1763618100427,500.0,0.0004203,120]
[394479601,1763618100488,268.14965769,0.0004203,120]
[394479602,1763618100531,240.11254737,0.0004203,120]
[394479603,1763618100659,264.127498,0.0004203,120]
[394479604,1763618101499,277.15515754,0.0004203,120]
[394479605,1763618103089,458.25071072,0.0004203,120]
[394479606,1763618104794,467.03787911,0.0004203,120]
[394479607,1763618105582,500.0,0.0004203,120]
[394479608,1763618105841,178.0246521,0.0004203,120]
[394479609,1763618105902,467.48238058,0.0004203,120]
[394479610,1763618107071,200.0,0.0004203,30]
[394479611,1763618107377,625.02449444,0.0004203,120]
[394479612,1763618107615,642.35583534,0.0004203,120]
[394479613,1763618107722,207.4,0.0004203,30]
[394479614,1763618108559,207.4,0.0004203,30]
[394479615,1763618108609,151.0,0.0004203,120]
[394479616,1763618108659,411.19939477,0.0004203,120]
[394479618,1763618109035,151.0,0.0004203,120]
[394479619,1763618109678,151.0,0.0004203,120]
[394479620,1763618109963,619.88815657,0.0004203,120]
[394479621,1763618110106,428.92140724,0.0004203,120]
[394479622,1763618110154,188.37894867,0.0004203,120]
[394479623,1763618110343,151.0,0.0004203,120]
[394479624,1763618110397,400.0,0.0004203,120]
[394479625,1763618110482,253.74,0.0004203,120]
[394479626,1763618110976,432.08509805,0.0004203,120]
[394479627,1763618111118,151.0,0.0004203,120]
[394479628,1763618111731,151.0,0.0004203,120]
[394479629,1763618111976,407.36390519,0.0004203,120]
[394479630,1763618112364,486.50220731,0.0004203,120]
[394479631,1763618112417,151.0,0.0004203,120]
[394479632,1763618112543,426.07382459,0.0004203,120]
[394479633,1763618112981,151.0,0.0004203,120]
[394479634,1763618113626,151.0,0.0004203,120]
[394479635,1763618114409,151.0,0.0004203,120]
[394479636,1763618114948,494.9240082,0.0004203,120]
[394479637,1763618115014,265.29449235,0.0004203,120]
[394479638,1763618115061,151.0,0.0004203,120]
[394479639,1763618115646,151.0,0.0004203,120]
[394479640,1763618116288,151.0,0.0004203,120]
[394479641,1763618116902,151.0,0.0004203,120]
[394479642,1763618117072,413.69663731,0.0004203,120]
[394479643,1763618117211,504.5313027,0.0004203,120]
[394479644,1763618117450,500.0,0.0004203,120]
[394479645,1763618117566,151.0,0.0004203,120]
[394479646,1763618117725,166.21536424,0.0004203,120]
[394479647,1763618118174,151.0,0.0004203,120]
[394479648,1763618118788,151.0,0.0004203,120]
[394479649,1763618119400,151.0,0.0004203,120]
[394479650,1763618120020,151.0,0.0004203,120]
[394479651,1763618120345,500.0,0.0004203,120]
[394479652,1763618120574,305.73358911,0.0004203,120]
[394479653,1763618120656,151.0,0.0004203,120]
[394479654,1763618121469,383.18,0.0004203,120]
[394479655,1763618122468,452.9492496,0.0004203,120]
[394479656,1763618122622,415.28261639,0.0004203,120]
[394479657,1763618123283,469.36778581,0.0004203,120]
[394479658,1763618124744,273.43382241,0.0004203,120]
[394479659,1763618125249,151.0,0.0004203,120]
[394479660,1763618125816,400.0,0.0004203,120]
[394479661,1763618125869,151.0,0.0004203,120]
[394479663,1763618130639,400.0,0.0004203,120]
[394479664,1763618132042,363.80474213,0.0004203,120]
[394479665,1763618136318,400.0,0.0004203,120]
[394479666,1763618139574,411.09151752,0.0004203,120]
[394479667,1763618142113,276.9578338,0.0004203,120]
[394479668,1763618143284,394.95510332,0.0004203,120]
[394479669,1763618145007,500.0,0.0004203,120]
[394479670,1763618145083,400.0,0.0004203,120]
[394479671,1763618145238,278.61610043,0.0004203,120]
[394479672,1763618145675,500.0,0.0004203,120]
[394479673,1763618145924,341.64117636,0.0004203,120]
[394479674,1763618147188,411.5441119,0.0004203,120]
[394479675,1763618147363,500.0,0.0004203,120]
[394479676,1763618147594,327.44872191,0.0004203,120]
[394479677,1763618147688,445.87145961,0.0004203,120]
[394479678,1763618148710,500.0,0.0004203,120]
[394479679,1763618148967,356.50238983,0.0004203,120]
[394479680,1763618149154,615.94707779,0.0004203,120]
[394479681,1763618149303,490.82109305,0.0004203,120]
[394479682,1763618151313,221.87785869,0.0004203,120]
[394479683,1763618151544,435.26802388,0.0004203,120]
[394479684,1763618152803,425.45329605,0.0004203,120]
[394479685,1763618157482,416.78133969,0.0004203,120]
[394479686,1763618158077,500.0,0.0004203,120]
[394479687,1763618158328,231.63033117,0.0004203,120]
[394479688,1763618158373,406.151842,0.0004203,120]
[394479689,1763618158853,218.25987173,0.0004203,120]
[394479690,1763618160065,407.76876782,0.0004203,120]
[394479691,1763618160507,500.0,0.0004203,120]
[394479692,1763618160745,261.42792058,0.0004203,120]
[394479693,1763618161230,431.39061057,0.0004203,120]
[394479694,1763618163515,500.75670516,0.0004203,120]
[394479695,1763618163563,408.29689236,0.0004203,120]
[394479696,1763618163849,200.0,0.0004203,30]
[394479697,1763618165225,207.44875942,0.0004203,120]
[394479698,1763618165372,439.04403937,0.0004203,120]
[394479699,1763618165816,390.95,0.0004203,120]
[394479700,1763618166233,412.19341526,0.0004203,120]
[394479701,1763618166328,315.02643139,0.0004203,120]
[394479702,1763618167049,410.49118725,0.0004203,120]
[394479703,1763618167103,179.67845911,0.0004203,120]
[394479704,1763618167418,409.37128013,0.0004203,120]
[394479705,1763618167570,400.0,0.0004203,120]
[394479706,1763618167890,250.0,0.0004203,120]
[394479707,1763618168206,500.0,0.0004203,120]
[394479708,1763618168443,273.8151751,0.0004203,120]
[394479709,1763618168494,250.0,0.0004203,120]
[394479710,1763618168547,151.0,0.0004203,120]
[394479711,1763618168606,162.67210099,0.0004203,120]
[394479712,1763618168655,568.61789738,0.0004203,120]
[394479713,1763618168832,408.29361041,0.0004203,120]
[394479714,1763618168886,400.0,0.0004203,120]
[394479715,1763618169067,206.97524322,0.0004203,120]
[394479716,1763618169118,250.0,0.0004203,120]
[394479717,1763618169166,151.0,0.0004203,120]
[394479718,1763618169790,151.0,0.0004203,120]
[394479719,1763618169836,425.32780504,0.0004203,120]